[Event "Titled Tuesday Blitz June 20 Late 2023"]
[White "Sailer, Mike"]
[Black "whiteglovethief"]
[WhiteFideId "2012901"]
[WhiteElo "2109"]
[BlackElo "2519"]
[Result "0-1"]
[Round "3"]
[TimeControl "180+2"]
[Date "2023.06.20"]
[WhiteClock "0:00:00"]
[BlackClock "0:00:14"]
[Board "134"]

1. d4 {[%clk 0:03:00]}  Nf6 {[%clk 0:02:59]} 2. Nc3 {[%clk 0:02:47]}  d5 {[%clk 0:02:58]} 3. Bf4 {[%clk 0:02:47]}  a6 {[%clk 0:02:56]} 4. e3 {[%clk 0:02:46]}  e6 {[%clk 0:02:56]} 5. Nf3 {[%clk 0:02:47]}  c5 {[%clk 0:02:57]} 6. dxc5 {[%clk 0:02:45]}  Bxc5 {[%clk 0:02:58]} 7. Bd3 {[%clk 0:02:46]}  Nc6 {[%clk 0:02:58]} 8. Qe2 {[%clk 0:02:46]}  Qe7 {[%clk 0:02:58]} 9. O-O {[%clk 0:02:36]}  e5 {[%clk 0:02:54]} 10. Bg5 {[%clk 0:02:35]}  Be6 {[%clk 0:02:54]} 11. e4 {[%clk 0:02:24]}  d4 {[%clk 0:02:52]} 12. Nd5 {[%clk 0:02:16]}  Qd8 {[%clk 0:02:50]} 13. Nxf6+ {[%clk 0:02:08]}  gxf6 {[%clk 0:02:50]} 14. Bh6 {[%clk 0:02:08]}  Rg8 {[%clk 0:02:49]} 15. Nh4 {[%clk 0:02:02]}  Ne7 {[%clk 0:02:35]} 16. Bc4 {[%clk 0:01:47]}  Bg4 {[%clk 0:02:23]} 17. Qd3 {[%clk 0:01:37]}  Ng6 {[%clk 0:02:19]} 18. Nf5 {[%clk 0:01:31]}  Bf8 {[%clk 0:02:14]} 19. Bxf8 {[%clk 0:01:19]}  Kxf8 {[%clk 0:02:15]} 20. Qa3+ {[%clk 0:01:09]}  Ke8 {[%clk 0:02:14]} 21. Nd6+ {[%clk 0:01:05]}  Kd7 {[%clk 0:02:10]} 22. Nxf7 {[%clk 0:00:57]}  Qb6 {[%clk 0:01:55]} 23. Nh6 {[%clk 0:00:44]}  Be6 {[%clk 0:01:44]} 24. Bxe6+ {[%clk 0:00:41]}  Kxe6 {[%clk 0:01:45]} 25. Nxg8 {[%clk 0:00:40]}  Rxg8 {[%clk 0:01:44]} 26. Qh3+ {[%clk 0:00:40]}  Kf7 {[%clk 0:01:41]} 27. Qxh7+ {[%clk 0:00:39]}  Rg7 {[%clk 0:01:41]} 28. Qh5 {[%clk 0:00:39]}  Kg8 {[%clk 0:01:38]} 29. Rad1 {[%clk 0:00:25]}  Qxb2 {[%clk 0:01:35]} 30. Rd3 {[%clk 0:00:24]}  Qxc2 {[%clk 0:01:35]} 31. Rg3 {[%clk 0:00:22]}  Qxe4 {[%clk 0:01:30]} 32. Rc1 {[%clk 0:00:19]}  d3 {[%clk 0:01:17]} 33. h3 {[%clk 0:00:17]}  d2 {[%clk 0:01:15]} 34. Rd1 {[%clk 0:00:17]}  Nf4 {[%clk 0:01:07]} 35. Rxg7+ {[%clk 0:00:14]}  Kxg7 {[%clk 0:01:08]} 36. Qg4+ {[%clk 0:00:13]}  Kh6 {[%clk 0:01:02]} 37. Kh2 {[%clk 0:00:12]}  Qd5 {[%clk 0:00:55]} 38. Qh4+ {[%clk 0:00:11]}  Kg7 {[%clk 0:00:55]} 39. Qg4+ {[%clk 0:00:11]}  Kf7 {[%clk 0:00:55]} 40. f3 {[%clk 0:00:11]}  Qxa2 {[%clk 0:00:51]} 41. Qc8 {[%clk 0:00:09]}  Qd5 {[%clk 0:00:42]} 42. Qc7+ {[%clk 0:00:09]}  Kg6 {[%clk 0:00:42]} 43. Qc2+ {[%clk 0:00:08]}  Kh6 {[%clk 0:00:35]} 44. Rxd2 {[%clk 0:00:09]}  Qg8 {[%clk 0:00:34]} 45. Qf5 {[%clk 0:00:06]}  Nh5 {[%clk 0:00:33]} 46. Qg4 {[%clk 0:00:04]}  Qb8 {[%clk 0:00:25]} 47. Qe4 {[%clk 0:00:04]}  Qg8 {[%clk 0:00:19]} 48. Rd7 {[%clk 0:00:03]}  Qg3+ {[%clk 0:00:18]} 49. Kh1 {[%clk 0:00:04]}  Ng7 {[%clk 0:00:17]} 50. Rxg7 {[%clk 0:00:02]}  Qxg7 {[%clk 0:00:16]} 51. Qf5 {[%clk 0:00:02]}  a5 {[%clk 0:00:15]} 52. Qe6 {[%clk 0:00:03]}  a4 {[%clk 0:00:14]} 53. Qb6 {[%clk 0:00:03]}  Qd7 {[%clk 0:00:14]} 54. Qxf6+ {[%clk 0:00:03]}  Kh7 {[%clk 0:00:15]} 55. Qh4+ {[%clk 0:00:03]}  Kg7 {[%clk 0:00:14]} 56. Qg5+ {[%clk 0:00:03]}  Kf7 {[%clk 0:00:14]} 57. Qxe5 {[%clk 0:00:04]}  b5 {[%clk 0:00:14]} 58. Qf4+ {[%clk 0:00:04]}  Ke7 {[%clk 0:00:14]} 59. Qe5+ {[%clk 0:00:05]}  Kd8 {[%clk 0:00:14]} 60. Qb8+ {[%clk 0:00:05]}  Ke7 {[%clk 0:00:13]} 61. Qe5+ {[%clk 0:00:05]}  Kf7 {[%clk 0:00:14]} 62. Qf4+ {[%clk 0:00:05]}  Ke6 {[%clk 0:00:14]} 63. Qe4+ {[%clk 0:00:06]}  Kd6 {[%clk 0:00:15]} 64. Qd4+ {[%clk 0:00:06]}  Kc6 {[%clk 0:00:15]} 65. Qe4+ {[%clk 0:00:04]}  Kb6 {[%clk 0:00:16]} 66. f4 {[%clk 0:00:04]}  a3 {[%clk 0:00:15]} 67. Qe3+ {[%clk 0:00:04]}  Kc6 {[%clk 0:00:15]} 68. Qxa3 {[%clk 0:00:04]}  Qd1+ {[%clk 0:00:16]} 69. Kh2 {[%clk 0:00:04]}  Qd4 {[%clk 0:00:16]} 70. Qf3+ {[%clk 0:00:04]}  Kb6 {[%clk 0:00:16]} 71. f5 {[%clk 0:00:04]}  b4 {[%clk 0:00:16]} 72. f6 {[%clk 0:00:05]}  Qe5+ {[%clk 0:00:16]} 73. Qg3 {[%clk 0:00:02]}  Qxf6 {[%clk 0:00:15]} 74. Qe3+ {[%clk 0:00:03]}  Kb5 {[%clk 0:00:15]} 75. Qd3+ {[%clk 0:00:03]}  Ka4 {[%clk 0:00:14]} 76. Qc2+ {[%clk 0:00:04]}  b3 {[%clk 0:00:15]} 77. Qc4+ {[%clk 0:00:04]}  Ka3 {[%clk 0:00:15]} 78. Qa6+ {[%clk 0:00:00]}  Qxa6 {[%clk 0:00:14]} 0-1


[Site "https://www.chess.com"]

[Event "Titled Tuesday Blitz June 20 Late 2023"]
[White "Uzcategui Rodriguez, Alejandro"]
[Black "Torres Dominguez, David"]
[WhiteFideId "3903400"]
[BlackFideId "2220857"]
[WhiteElo "2252"]
[BlackElo "1999"]
[Result "1/2-1/2"]
[Round "3"]
[TimeControl "180+2"]
[Date "2023.06.20"]
[WhiteClock "0:00:29"]
[BlackClock "0:00:16"]
[Board "135"]

1. e4 {[%clk 0:03:00]}  e5 {[%clk 0:02:54]} 2. Nf3 {[%clk 0:03:01]}  Nc6 {[%clk 0:02:53]} 3. d4 {[%clk 0:03:01]}  exd4 {[%clk 0:02:53]} 4. Bc4 {[%clk 0:03:01]}  Bc5 {[%clk 0:02:52]} 5. c3 {[%clk 0:02:59]}  Nf6 {[%clk 0:02:52]} 6. e5 {[%clk 0:02:59]}  d5 {[%clk 0:02:51]} 7. Bb5 {[%clk 0:02:54]}  Ne4 {[%clk 0:02:51]} 8. cxd4 {[%clk 0:02:53]}  Bb6 {[%clk 0:02:50]} 9. Nc3 {[%clk 0:02:50]}  O-O {[%clk 0:02:46]} 10. Be3 {[%clk 0:02:48]}  Bg4 {[%clk 0:02:41]} 11. h3 {[%clk 0:02:47]}  Bh5 {[%clk 0:02:12]} 12. Qc2 {[%clk 0:02:45]}  Bg6 {[%clk 0:02:07]} 13. Qb3 {[%clk 0:02:44]}  Ne7 {[%clk 0:02:05]} 14. O-O {[%clk 0:02:41]}  c6 {[%clk 0:02:04]} 15. Bd3 {[%clk 0:02:33]}  Nxc3 {[%clk 0:01:51]} 16. Qxc3 {[%clk 0:02:25]}  Bxd3 {[%clk 0:01:51]} 17. Qxd3 {[%clk 0:02:25]}  Ng6 {[%clk 0:01:45]} 18. Ng5 {[%clk 0:02:18]}  Qd7 {[%clk 0:01:41]} 19. f4 {[%clk 0:02:10]}  h6 {[%clk 0:01:33]} 20. f5 {[%clk 0:01:26]}  hxg5 {[%clk 0:01:27]} 21. fxg6 {[%clk 0:01:12]}  fxg6 {[%clk 0:01:22]} 22. Qxg6 {[%clk 0:01:12]}  Qe7 {[%clk 0:01:19]} 23. Rad1 {[%clk 0:00:58]}  Rxf1+ {[%clk 0:01:14]} 24. Rxf1 {[%clk 0:00:57]}  Rf8 {[%clk 0:01:11]} 25. Rxf8+ {[%clk 0:00:55]}  Qxf8 {[%clk 0:01:09]} 26. Qxg5 {[%clk 0:00:53]}  Qb4 {[%clk 0:01:03]} 27. e6 {[%clk 0:00:43]}  Qe1+ {[%clk 0:00:58]} 28. Kh2 {[%clk 0:00:42]}  Bc7+ {[%clk 0:00:55]} 29. Bf4 {[%clk 0:00:41]}  Bxf4+ {[%clk 0:00:51]} 30. Qxf4 {[%clk 0:00:41]}  Qxe6 {[%clk 0:00:52]} 31. Qb8+ {[%clk 0:00:40]}  Kh7 {[%clk 0:00:49]} 32. Qxb7 {[%clk 0:00:38]}  Qf5 {[%clk 0:00:39]} 33. Qc7 {[%clk 0:00:35]}  Qf2 {[%clk 0:00:35]} 34. b4 {[%clk 0:00:30]}  Qxd4 {[%clk 0:00:31]} 35. Qxc6 {[%clk 0:00:30]}  Qe5+ {[%clk 0:00:25]} 36. Kg1 {[%clk 0:00:28]}  Qe1+ {[%clk 0:00:18]} 37. Kh2 {[%clk 0:00:28]}  Qe5+ {[%clk 0:00:18]} 38. Kh1 {[%clk 0:00:28]}  Qe1+ {[%clk 0:00:16]} 39. Kh2 {[%clk 0:00:29]}  Qe5+ {[%clk 0:00:16]} 1/2-1/2


[Site "https://www.chess.com"]

[Event "Titled Tuesday Blitz June 20 Late 2023"]
[White "Vargas, Mauricio"]
[Black "Muradov, Soltan"]
[WhiteFideId "4404572"]
[BlackFideId "14002108"]
[WhiteElo "1986"]
[BlackElo "2163"]
[Result "0-1"]
[Round "3"]
[TimeControl "180+2"]
[Date "2023.06.20"]
[WhiteClock "0:00:00"]
[BlackClock "0:02:03"]
[Board "137"]

1. e4 {[%clk 0:02:59]}  c6 {[%clk 0:02:57]} 2. Nc3 {[%clk 0:02:55]}  d5 {[%clk 0:02:58]} 3. d3 {[%clk 0:02:53]}  Nf6 {[%clk 0:02:57]} 4. e5 {[%clk 0:02:47]}  Nfd7 {[%clk 0:02:50]} 5. f4 {[%clk 0:02:47]}  e6 {[%clk 0:02:50]} 6. Nf3 {[%clk 0:02:45]}  c5 {[%clk 0:02:49]} 7. g4 {[%clk 0:02:39]}  h5 {[%clk 0:02:48]} 8. g5 {[%clk 0:02:39]}  g6 {[%clk 0:02:48]} 9. Bg2 {[%clk 0:02:38]}  Nc6 {[%clk 0:02:48]} 10. O-O {[%clk 0:02:37]}  a6 {[%clk 0:02:48]} 11. Ne2 {[%clk 0:02:28]}  b5 {[%clk 0:02:47]} 12. c3 {[%clk 0:02:28]}  Qb6 {[%clk 0:02:41]} 13. h4 {[%clk 0:02:22]}  Bb7 {[%clk 0:02:41]} 14. Kh2 {[%clk 0:02:22]}  Ne7 {[%clk 0:02:38]} 15. Ng3 {[%clk 0:02:19]}  c4 {[%clk 0:02:37]} 16. d4 {[%clk 0:02:17]}  O-O-O {[%clk 0:02:35]} 17. a4 {[%clk 0:02:16]}  b4 {[%clk 0:02:34]} 18. Bd2 {[%clk 0:02:11]}  b3 {[%clk 0:02:32]} 19. a5 {[%clk 0:01:59]}  Qc7 {[%clk 0:02:28]} 20. Kh3 {[%clk 0:01:42]}  Nc6 {[%clk 0:02:25]} 21. Ra4 {[%clk 0:01:35]}  Nxa5 {[%clk 0:02:21]} 22. Qa1 {[%clk 0:01:33]}  Nc6 {[%clk 0:02:21]} 23. Be3 {[%clk 0:01:24]}  Nb6 {[%clk 0:02:19]} 24. Rxa6 {[%clk 0:01:20]}  Bxa6 {[%clk 0:02:20]} 25. Qxa6+ {[%clk 0:01:20]}  Qb7 {[%clk 0:02:21]} 26. Qa1 {[%clk 0:01:11]}  Kc7 {[%clk 0:02:19]} 27. Nd2 {[%clk 0:01:11]}  Ra8 {[%clk 0:02:18]} 28. Qb1 {[%clk 0:01:10]}  Ra2 {[%clk 0:02:13]} 29. Bf3 {[%clk 0:00:39]}  Be7 {[%clk 0:02:06]} 30. Rf2 {[%clk 0:00:00]}  Rha8 {[%clk 0:02:03]} 0-1


[Site "https://www.chess.com"]

[Event "Titled Tuesday Blitz June 20 Late 2023"]
[White "Kavyev, Ruslan"]
[Black "Ionescu, Mihai"]
[WhiteFideId "34110981"]
[BlackFideId "1202499"]
[WhiteElo "2336"]
[BlackElo "2279"]
[Result "1-0"]
[Round "3"]
[TimeControl "180+2"]
[Date "2023.06.20"]
[WhiteClock "0:01:23"]
[BlackClock "0:00:49"]
[Board "141"]

1. d4 {[%clk 0:03:00]}  Nf6 {[%clk 0:02:59]} 2. c4 {[%clk 0:03:01]}  Nc6 {[%clk 0:02:59]} 3. Nf3 {[%clk 0:03:01]}  e6 {[%clk 0:02:58]} 4. g3 {[%clk 0:03:02]}  Bb4+ {[%clk 0:02:57]} 5. Bd2 {[%clk 0:03:01]}  Qe7 {[%clk 0:02:56]} 6. Bg2 {[%clk 0:03:01]}  O-O {[%clk 0:02:55]} 7. O-O {[%clk 0:03:01]}  Bxd2 {[%clk 0:02:54]} 8. Qxd2 {[%clk 0:02:59]}  d6 {[%clk 0:02:54]} 9. Nc3 {[%clk 0:02:56]}  e5 {[%clk 0:02:54]} 10. e4 {[%clk 0:02:54]}  Bg4 {[%clk 0:02:49]} 11. dxe5 {[%clk 0:02:27]}  Nxe5 {[%clk 0:02:42]} 12. Nxe5 {[%clk 0:02:26]}  dxe5 {[%clk 0:02:39]} 13. Nd5 {[%clk 0:02:27]}  Nxd5 {[%clk 0:02:38]} 14. cxd5 {[%clk 0:02:27]}  Bd7 {[%clk 0:02:27]} 15. Rac1 {[%clk 0:02:25]}  c6 {[%clk 0:02:20]} 16. Rfd1 {[%clk 0:02:19]}  cxd5 {[%clk 0:02:13]} 17. exd5 {[%clk 0:02:17]}  Qd6 {[%clk 0:02:13]} 18. Rc3 {[%clk 0:02:05]}  Rfc8 {[%clk 0:02:11]} 19. Rdc1 {[%clk 0:02:05]}  h6 {[%clk 0:02:05]} 20. b4 {[%clk 0:01:56]}  Rxc3 {[%clk 0:02:03]} 21. Rxc3 {[%clk 0:01:56]}  Rc8 {[%clk 0:02:02]} 22. Rxc8+ {[%clk 0:01:52]}  Bxc8 {[%clk 0:02:02]} 23. Qc3 {[%clk 0:01:53]}  Bd7 {[%clk 0:01:54]} 24. Qc5 {[%clk 0:01:52]}  Qxc5 {[%clk 0:01:53]} 25. bxc5 {[%clk 0:01:53]}  Kf8 {[%clk 0:01:52]} 26. Kf1 {[%clk 0:01:53]}  Bc8 {[%clk 0:01:47]} 27. Ke2 {[%clk 0:01:53]}  Ke7 {[%clk 0:01:41]} 28. Kd3 {[%clk 0:01:53]}  f5 {[%clk 0:01:36]} 29. Kc4 {[%clk 0:01:52]}  g5 {[%clk 0:01:36]} 30. d6+ {[%clk 0:01:44]}  Ke6 {[%clk 0:01:28]} 31. Bd5+ {[%clk 0:01:44]}  Kf6 {[%clk 0:01:25]} 32. a4 {[%clk 0:01:42]}  f4 {[%clk 0:01:21]} 33. a5 {[%clk 0:01:39]}  a6 {[%clk 0:01:21]} 34. c6 {[%clk 0:01:37]}  bxc6 {[%clk 0:01:21]} 35. Bxc6 {[%clk 0:01:38]}  Ke6 {[%clk 0:01:19]} 36. Kc5 {[%clk 0:01:38]}  Bd7 {[%clk 0:01:16]} 37. Bxd7+ {[%clk 0:01:28]}  Kxd7 {[%clk 0:01:16]} 38. Kd5 {[%clk 0:01:29]}  fxg3 {[%clk 0:01:12]} 39. hxg3 {[%clk 0:01:23]}  e4 {[%clk 0:00:56]} 40. g4 {[%clk 0:01:23]}  Kd8 {[%clk 0:00:49]} 41. Kxe4 {[%clk 0:01:23]} 1-0


[Site "https://www.chess.com"]

[Event "Titled Tuesday Blitz June 20 Late 2023"]
[White "Pinheiro, Iung Alicio de O."]
[Black "Sivakumar, Shaaketh"]
[WhiteFideId "2104350"]
[BlackFideId "30940176"]
[WhiteElo "2283"]
[BlackElo "2174"]
[Result "1/2-1/2"]
[Round "3"]
[TimeControl "180+2"]
[Date "2023.06.20"]
[WhiteClock "0:00:03"]
[BlackClock "0:00:17"]
[Board "143"]

1. d4 {[%clk 0:03:00]}  e6 {[%clk 0:03:00]} 2. c4 {[%clk 0:02:57]}  b6 {[%clk 0:03:00]} 3. a3 {[%clk 0:02:56]}  f5 {[%clk 0:02:59]} 4. Nc3 {[%clk 0:02:55]}  Nf6 {[%clk 0:03:00]} 5. Nf3 {[%clk 0:02:56]}  Bb7 {[%clk 0:03:00]} 6. d5 {[%clk 0:02:56]}  g6 {[%clk 0:03:00]} 7. g3 {[%clk 0:02:20]}  Bg7 {[%clk 0:02:59]} 8. Bg2 {[%clk 0:02:20]}  O-O {[%clk 0:02:59]} 9. O-O {[%clk 0:02:20]}  Na6 {[%clk 0:03:00]} 10. Nd4 {[%clk 0:02:12]}  Nc5 {[%clk 0:02:52]} 11. Bg5 {[%clk 0:01:50]}  h6 {[%clk 0:02:48]} 12. Bxf6 {[%clk 0:01:45]}  Qxf6 {[%clk 0:02:48]} 13. e3 {[%clk 0:01:39]}  a5 {[%clk 0:02:44]} 14. b4 {[%clk 0:01:37]}  axb4 {[%clk 0:02:43]} 15. axb4 {[%clk 0:01:38]}  Rxa1 {[%clk 0:02:43]} 16. Qxa1 {[%clk 0:01:38]}  Ra8 {[%clk 0:02:40]} 17. Qb1 {[%clk 0:01:37]}  Na4 {[%clk 0:02:37]} 18. Ncb5 {[%clk 0:01:14]}  Qe5 {[%clk 0:02:13]} 19. dxe6 {[%clk 0:00:56]}  Bxg2 {[%clk 0:02:11]} 20. Kxg2 {[%clk 0:00:56]}  dxe6 {[%clk 0:02:09]} 21. Qd1 {[%clk 0:00:56]}  Nb2 {[%clk 0:02:00]} 22. Qf3 {[%clk 0:00:56]}  Rf8 {[%clk 0:01:53]} 23. Nc6 {[%clk 0:00:52]}  Qf6 {[%clk 0:01:53]} 24. Nxc7 {[%clk 0:00:47]}  Nxc4 {[%clk 0:01:53]} 25. Rd1 {[%clk 0:00:46]}  g5 {[%clk 0:01:48]} 26. Rd7 {[%clk 0:00:40]}  g4 {[%clk 0:01:38]} 27. Qe2 {[%clk 0:00:38]}  Ne5 {[%clk 0:01:38]} 28. Nxe5 {[%clk 0:00:38]}  Qxe5 {[%clk 0:01:39]} 29. Qd3 {[%clk 0:00:38]}  Kh8 {[%clk 0:01:35]} 30. Re7 {[%clk 0:00:36]}  Bf6 {[%clk 0:01:27]} 31. Rd7 {[%clk 0:00:28]}  Rc8 {[%clk 0:01:24]} 32. Nb5 {[%clk 0:00:21]}  h5 {[%clk 0:01:16]} 33. Nd6 {[%clk 0:00:21]}  Qc3 {[%clk 0:00:44]} 34. Nxc8 {[%clk 0:00:17]}  Qc6+ {[%clk 0:00:44]} 35. Kg1 {[%clk 0:00:16]}  Qxc8 {[%clk 0:00:45]} 36. Qd1 {[%clk 0:00:13]}  h4 {[%clk 0:00:44]} 37. gxh4 {[%clk 0:00:13]}  Qc6 {[%clk 0:00:40]} 38. Rd6 {[%clk 0:00:13]}  Qe4 {[%clk 0:00:40]} 39. Rd7 {[%clk 0:00:12]}  Bxh4 {[%clk 0:00:39]} 40. Qd4+ {[%clk 0:00:12]}  Qxd4 {[%clk 0:00:37]} 41. Rxd4 {[%clk 0:00:13]}  Be7 {[%clk 0:00:37]} 42. b5 {[%clk 0:00:13]}  Kg7 {[%clk 0:00:38]} 43. Rd7 {[%clk 0:00:13]}  Kf6 {[%clk 0:00:38]} 44. Rb7 {[%clk 0:00:13]}  Bc5 {[%clk 0:00:38]} 45. Kg2 {[%clk 0:00:14]}  Ke5 {[%clk 0:00:38]} 46. f3 {[%clk 0:00:14]}  Bxe3 {[%clk 0:00:37]} 47. fxg4 {[%clk 0:00:14]}  fxg4 {[%clk 0:00:37]} 48. Kg3 {[%clk 0:00:14]}  Bf4+ {[%clk 0:00:37]} 49. Kxg4 {[%clk 0:00:15]}  Bxh2 {[%clk 0:00:37]} 50. Rxb6 {[%clk 0:00:15]}  Bg1 {[%clk 0:00:35]} 51. Rb7 {[%clk 0:00:15]}  Kd5 {[%clk 0:00:36]} 52. Kf3 {[%clk 0:00:15]}  e5 {[%clk 0:00:35]} 53. Ke2 {[%clk 0:00:14]}  Bd4 {[%clk 0:00:33]} 54. Kd3 {[%clk 0:00:14]}  e4+ {[%clk 0:00:33]} 55. Ke2 {[%clk 0:00:14]}  e3 {[%clk 0:00:34]} 56. Rh7 {[%clk 0:00:14]}  Bb6 {[%clk 0:00:25]} 57. Rh5+ {[%clk 0:00:15]}  Kc4 {[%clk 0:00:24]} 58. Re5 {[%clk 0:00:14]}  Bd4 {[%clk 0:00:23]} 59. Rh5 {[%clk 0:00:14]}  Bb6 {[%clk 0:00:23]} 60. Rh4+ {[%clk 0:00:12]}  Kxb5 {[%clk 0:00:23]} 61. Kd3 {[%clk 0:00:13]}  Kc6 {[%clk 0:00:23]} 62. Rh6+ {[%clk 0:00:13]}  Kb5 {[%clk 0:00:23]} 63. Re6 {[%clk 0:00:13]}  Ba7 {[%clk 0:00:22]} 64. Kc3 {[%clk 0:00:13]}  Bb6 {[%clk 0:00:22]} 65. Re5+ {[%clk 0:00:13]}  Kc6 {[%clk 0:00:22]} 66. Kc4 {[%clk 0:00:14]}  Kd6 {[%clk 0:00:21]} 67. Re4 {[%clk 0:00:14]}  Ba7 {[%clk 0:00:20]} 68. Rh4 {[%clk 0:00:12]}  Bb6 {[%clk 0:00:20]} 69. Rh6+ {[%clk 0:00:13]}  Kc7 {[%clk 0:00:21]} 70. Kb5 {[%clk 0:00:13]}  Bd4 {[%clk 0:00:22]} 71. Re6 {[%clk 0:00:12]}  Kd7 {[%clk 0:00:22]} 72. Re4 {[%clk 0:00:12]}  Ba7 {[%clk 0:00:22]} 73. Kc4 {[%clk 0:00:13]}  Kd6 {[%clk 0:00:22]} 74. Rh4 {[%clk 0:00:13]}  Ke5 {[%clk 0:00:21]} 75. Kd3 {[%clk 0:00:12]}  Bc5 {[%clk 0:00:20]} 76. Rh5+ {[%clk 0:00:11]}  Kd6 {[%clk 0:00:20]} 77. Kc4 {[%clk 0:00:10]}  e2 {[%clk 0:00:20]} 78. Rh6+ {[%clk 0:00:09]}  Ke7 {[%clk 0:00:18]} 79. Rh1 {[%clk 0:00:06]}  Bf2 {[%clk 0:00:16]} 80. Kd3 {[%clk 0:00:02]}  e1=Q {[%clk 0:00:17]} 81. Rxe1+ {[%clk 0:00:03]}  Bxe1 {[%clk 0:00:17]} 1/2-1/2


[Site "https://www.chess.com"]

[Event "Titled Tuesday Blitz June 20 Late 2023"]
[White "Fedotov, Nikita"]
[Black "Wang, Isaac"]
[WhiteFideId "24161446"]
[BlackFideId "30977185"]
[WhiteElo "2211"]
[BlackElo "2369"]
[Result "0-1"]
[Round "3"]
[TimeControl "180+2"]
[Date "2023.06.20"]
[WhiteClock "0:00:21"]
[BlackClock "0:00:35"]
[Board "145"]

1. c4 {[%clk 0:02:53]}  c6 {[%clk 0:02:58]} 2. g3 {[%clk 0:02:52]}  d5 {[%clk 0:02:58]} 3. Nf3 {[%clk 0:02:51]}  Nf6 {[%clk 0:02:57]} 4. Bg2 {[%clk 0:02:51]}  Bf5 {[%clk 0:02:56]} 5. Qb3 {[%clk 0:02:51]}  Qc7 {[%clk 0:02:54]} 6. d3 {[%clk 0:02:42]}  Nbd7 {[%clk 0:02:54]} 7. Nc3 {[%clk 0:02:37]}  e6 {[%clk 0:02:54]} 8. Bf4 {[%clk 0:02:35]}  Qb6 {[%clk 0:02:52]} 9. O-O {[%clk 0:02:33]}  Be7 {[%clk 0:02:50]} 10. Be3 {[%clk 0:02:24]}  Qc7 {[%clk 0:02:48]} 11. Rfc1 {[%clk 0:02:16]}  dxc4 {[%clk 0:02:29]} 12. Qxc4 {[%clk 0:02:14]}  O-O {[%clk 0:02:28]} 13. b4 {[%clk 0:02:13]}  Rfc8 {[%clk 0:02:25]} 14. a4 {[%clk 0:02:11]}  Nd5 {[%clk 0:02:23]} 15. Nxd5 {[%clk 0:01:55]}  exd5 {[%clk 0:02:22]} 16. Qb3 {[%clk 0:01:53]}  Ne5 {[%clk 0:02:14]} 17. Nd4 {[%clk 0:01:51]}  Bg6 {[%clk 0:02:13]} 18. b5 {[%clk 0:01:50]}  Qd7 {[%clk 0:02:07]} 19. Bf4 {[%clk 0:01:45]}  Bf6 {[%clk 0:02:02]} 20. Qa3 {[%clk 0:01:28]}  Nxd3 {[%clk 0:01:55]} 21. bxc6 {[%clk 0:01:15]}  bxc6 {[%clk 0:01:54]} 22. exd3 {[%clk 0:01:04]}  Bxd4 {[%clk 0:01:53]} 23. Rab1 {[%clk 0:01:04]}  h5 {[%clk 0:01:42]} 24. h4 {[%clk 0:01:02]}  Qf5 {[%clk 0:01:38]} 25. Qb4 {[%clk 0:01:01]}  c5 {[%clk 0:01:35]} 26. Qb7 {[%clk 0:01:01]}  Qxd3 {[%clk 0:01:31]} 27. Bxd5 {[%clk 0:01:01]}  Qe2 {[%clk 0:01:27]} 28. Rf1 {[%clk 0:00:55]}  Bxb1 {[%clk 0:01:23]} 29. Qxf7+ {[%clk 0:00:55]}  Kh8 {[%clk 0:01:23]} 30. Rxb1 {[%clk 0:00:48]}  Bxf2+ {[%clk 0:01:09]} 31. Kh1 {[%clk 0:00:47]}  Rf8 {[%clk 0:01:05]} 32. Qg6 {[%clk 0:00:43]}  Rae8 {[%clk 0:01:03]} 33. Bh6 {[%clk 0:00:22]}  Bd4 {[%clk 0:00:44]} 34. Bf4 {[%clk 0:00:22]}  Qg4 {[%clk 0:00:36]} 35. Qd3 {[%clk 0:00:21]}  Qh3# {[%clk 0:00:35]} 0-1


[Site "https://www.chess.com"]

[Event "Titled Tuesday Blitz June 20 Late 2023"]
[White "Schut, Han"]
[Black "Liu, Casper"]
[WhiteFideId "1005561"]
[BlackFideId "1454153"]
[WhiteElo "2024"]
[BlackElo "2221"]
[Result "0-1"]
[Round "3"]
[TimeControl "180+2"]
[Date "2023.06.20"]
[WhiteClock "0:00:00"]
[BlackClock "0:00:16"]
[Board "148"]

1. e4 {[%clk 0:02:58]}  Nc6 {[%clk 0:02:59]} 2. Nf3 {[%clk 0:02:58]}  d6 {[%clk 0:02:58]} 3. d4 {[%clk 0:02:58]}  Bg4 {[%clk 0:02:58]} 4. Bb5 {[%clk 0:02:53]}  a6 {[%clk 0:02:58]} 5. Bxc6+ {[%clk 0:02:53]}  bxc6 {[%clk 0:02:59]} 6. h3 {[%clk 0:02:52]}  Bxf3 {[%clk 0:02:57]} 7. Qxf3 {[%clk 0:02:53]}  g6 {[%clk 0:02:58]} 8. e5 {[%clk 0:02:48]}  d5 {[%clk 0:02:58]} 9. c4 {[%clk 0:02:41]}  e6 {[%clk 0:02:58]} 10. c5 {[%clk 0:02:38]}  Bg7 {[%clk 0:02:53]} 11. Qg3 {[%clk 0:02:23]}  Ne7 {[%clk 0:02:49]} 12. Bg5 {[%clk 0:02:21]}  Nf5 {[%clk 0:02:46]} 13. Qf4 {[%clk 0:02:10]}  f6 {[%clk 0:02:13]} 14. exf6 {[%clk 0:02:09]}  Bxf6 {[%clk 0:02:13]} 15. Bxf6 {[%clk 0:01:43]}  Qxf6 {[%clk 0:02:14]} 16. Qxc7 {[%clk 0:01:43]}  O-O {[%clk 0:02:08]} 17. Qe5 {[%clk 0:01:35]}  Nxd4 {[%clk 0:01:39]} 18. Qxf6 {[%clk 0:01:35]}  Rxf6 {[%clk 0:01:40]} 19. Na3 {[%clk 0:01:30]}  Raf8 {[%clk 0:01:33]} 20. f3 {[%clk 0:01:18]}  e5 {[%clk 0:01:33]} 21. O-O-O {[%clk 0:01:06]}  Ne6 {[%clk 0:01:21]} 22. Rhe1 {[%clk 0:01:03]}  Rf5 {[%clk 0:01:13]} 23. Nc2 {[%clk 0:00:51]}  Nxc5 {[%clk 0:01:13]} 24. Ne3 {[%clk 0:00:44]}  R5f7 {[%clk 0:01:08]} 25. Ng4 {[%clk 0:00:43]}  e4 {[%clk 0:01:08]} 26. Nh6+ {[%clk 0:00:42]}  Kg7 {[%clk 0:01:07]} 27. Nxf7 {[%clk 0:00:42]}  Nd3+ {[%clk 0:01:08]} 28. Kd2 {[%clk 0:00:22]}  Nxe1 {[%clk 0:00:57]} 29. Ng5 {[%clk 0:00:22]}  Rf5 {[%clk 0:00:24]} 30. Ne6+ {[%clk 0:00:22]}  Kf6 {[%clk 0:00:24]} 31. fxe4 {[%clk 0:00:16]}  dxe4 {[%clk 0:00:20]} 32. Nd8 {[%clk 0:00:08]}  Nxg2 {[%clk 0:00:16]} 33. Nxc6 {[%clk 0:00:08]}  e3+ {[%clk 0:00:16]} 34. Kd3 {[%clk 0:00:00]}  Rd5+ {[%clk 0:00:16]} 0-1


[Site "https://www.chess.com"]